fUSD/lending_fUSD_20240403
["ID","MTS","AMOUNT","RATE_DAILY","PERIOD"]
[321395245,1712123455033,-150.0,0.00041831,2]
[321395246,1712123455042,-150.0,0.00041837,2]
[321395247,1712123455052,-150.0,0.00041838,2]
[321395248,1712123455061,-150.0,0.0004184,2]
[321395249,1712123455070,-150.0,0.00041843,2]
[321395250,1712123455079,-150.0,0.00041845,2]
[321395251,1712123455142,-1500.0,0.00041861,2]
[321395252,1712123455152,-150.0,0.00041864,2]
[321395253,1712123455161,-247.68743586,0.00041868,2]
[321395254,1712123455170,-150.0,0.00041873,2]
[321395255,1712123455178,-150.0,0.000419,2]
[321395256,1712123455187,-300.0,0.00041907,2]
[321395257,1712123455196,-150.0,0.00041909,2]
[321395258,1712123455205,-150.0,0.00041912,2]
[321395259,1712123455214,-300.0,0.0004192,2]
[321395260,1712123455223,-1500.0,0.00041921,2]
[321395261,1712123455232,-300.0,0.00041922,2]
[321395262,1712123455242,-150.0,0.00041929,2]
[321395263,1712123455251,-150.0,0.00041938,2]
[321395264,1712123455260,-1500.0,0.00041941,2]
[321395265,1712123455270,-300.0,0.00041943,2]
[321395266,1712123455279,-150.0,0.00041952,2]
[321395267,1712123455288,-1500.0,0.00041953,2]
[321395268,1712123455297,-152.0,0.00041954,3]
[321395269,1712123455307,-678.72,0.00041969,2]
[321395270,1712123455316,-150.0,0.00041971,2]
[321395271,1712123455324,-150.0,0.00041979,2]
[321395272,1712123455334,-987.22707918,0.00041994,2]
[321395273,1712123455342,-300.0,0.00041998,2]
[321395274,1712123455352,-8767.71778012,0.00042,2]
[321395275,1712123455361,-470.8374394,0.00042,120]
[321395276,1712123455371,-3355.0,0.00042,30]
[321395277,1712123455380,-317.93881874,0.00042,2]
[321395278,1712123455389,-21035.10821653,0.00042,2]
[321395279,1712123455398,-504.59683706,0.00042,2]
[321395280,1712123455407,-497.0,0.00042,28]
[321395281,1712123455417,-150.0,0.00042002,2]
[321395282,1712123455426,-150.0,0.00042007,2]
[321395283,1712123455436,-1303.37965665,0.0004201,2]
[321395284,1712123455445,-1500.0,0.00042018,2]
[321395285,1712123455454,-150.0,0.00042018,2]
[321395286,1712123455463,-300.0,0.00042024,2]
[321395287,1712123455473,-150.0,0.00042035,2]
[321395288,1712123455482,-150.0,0.00042037,2]
[321395289,1712123455492,-329.42189758,0.00042048,2]
[321395290,1712123455501,-1500.0,0.00042049,2]
[321395291,1712123455510,-150.0,0.00042063,2]
[321395292,1712123455520,-300.0,0.00042063,2]
[321395293,1712123455529,-1000.0,0.00042072,30]
[321395294,1712123455539,-1500.0,0.00042075,2]
[321395295,1712123455548,-1500.0,0.00042082,2]
[321395296,1712123455558,-150.0,0.00042094,2]
[321395297,1712123455567,-5663.0,0.00042095,30]
[321395298,1712123455577,-1500.0,0.00042096,2]
[321395299,1712123455586,-1164.5151862,0.00042097,4]
[321395300,1712123455596,-1470.861053,0.00042097,4]
[321395301,1712123455605,-364.57,0.000421,7]
[321395302,1712123455614,-2000.0,0.00042175,7]
[321395303,1712123455623,-200.0,0.00042175,7]
[321395304,1712123455633,-200.0,0.00042175,7]
[321395305,1712123455642,-2000.0,0.00042596,7]
[321395306,1712123455651,-200.0,0.00042596,7]
[321395307,1712123455660,-200.0,0.00042596,7]
[321395308,1712123455671,-150.0,0.00042693,120]
[321395309,1712123455680,-870.32,0.000427,7]
[321395310,1712123455689,-212.61072703,0.00042718,17]
[321395311,1712123455698,-1300.27766301,0.00042729,15]
[321395312,1712123455707,-150.91,0.0004274,2]
[321395313,1712123455717,-152.0,0.00042882,4]
[321395314,1712123455726,-5575.76396523,0.000429,2]
[321395315,1712123455735,-579.07994398,0.000429,2]
[321395316,1712123455744,-83000.0,0.00043,10]
[321395317,1712123455754,-721.41904155,0.00043,4]
[321395318,1712123455763,-1000.0,0.00043,3]
[321395319,1712123455773,-2000.0,0.00043022,7]
[321395320,1712123455781,-200.0,0.00043022,7]
[321395321,1712123455791,-200.0,0.00043022,7]
[321395322,1712123455800,-1000.0,0.000431,7]
[321395323,1712123455809,-676.0,0.00043182,5]
[321395324,1712123455818,-676.0,0.00043182,5]
[321395325,1712123455827,-398.07699513,0.00043198,4]
[321395326,1712123455836,-2000.0,0.00043453,7]
[321395327,1712123455845,-200.0,0.00043453,7]
[321395328,1712123455854,-200.0,0.00043453,7]
[321395329,1712123455863,-364.56,0.000435,7]
[321395330,1712123455872,-800.95,0.00043507,15]
[321395331,1712123455881,-1385.0,0.00043592,2]
[321395332,1712123455890,-964.0,0.00043592,2]
[321395333,1712123455900,-459.0,0.00043592,2]
[321395334,1712123455909,-2427.0,0.00043592,2]
[321395335,1712123455918,-1256.0,0.00043592,2]
[321395336,1712123455926,-279.0,0.00043592,2]
[321395337,1712123455935,-606.0,0.00043592,2]
[321395338,1712123455944,-1270.0,0.00043592,2]
[321395339,1712123455953,-434.0,0.00043592,2]
[321395340,1712123455962,-804.0,0.00043592,2]
[321395341,1712123455971,-150.0,0.00043592,2]
[321395342,1712123455980,-150.0,0.00043592,2]
[321395343,1712123455989,-1140.0,0.00043592,2]
[321395344,1712123455998,-397.0,0.00043592,2]
[321395345,1712123456007,-1466.0,0.00043592,2]
[321395346,1712123456018,-2989.0,0.00043592,2]
[321395347,1712123456027,-150.0,0.00043592,2]
[321395348,1712123456036,-1631.0,0.00043592,2]
[321395349,1712123456044,-2430.0,0.00043592,2]
[321395350,1712123456054,-214.0,0.00043592,2]
[321395351,1712123456063,-206.0,0.00043592,2]
[321395352,1712123456072,-150.0,0.00043592,2]
[321395353,1712123456081,-1196.0,0.00043592,2]
[321395354,1712123456090,-43082.0,0.00043592,2]
[321395355,1712123456100,-1179.0,0.00043592,2]
[321395356,1712123456109,-4784.0,0.00043592,2]
[321395357,1712123456118,-5696.0,0.00043592,2]
[321395358,1712123456128,-2456.0,0.00043592,2]
[321395359,1712123456137,-1049.0,0.00043592,2]
[321395360,1712123456146,-1583.48,0.000436,7]
[321395361,1712123456156,-3000.0,0.000438,2]
[321395362,1712123456165,-152.0,0.0004381,5]
[321395363,1712123456175,-151.0,0.00043831,14]
[321395364,1712123456184,-192.83,0.00043831,2]
[321395365,1712123456193,-904.55,0.00043831,2]
[321395366,1712123456203,-410.52,0.00043831,2]
[321395367,1712123456213,-904.55,0.00043831,2]
[321395368,1712123456223,-410.52,0.00043831,2]
[321395369,1712123456232,-904.55,0.00043831,2]
[321395370,1712123456242,-904.55,0.00043831,2]
[321395371,1712123456251,-410.52,0.00043831,2]
[321395372,1712123456261,-904.55,0.00043831,2]
[321395373,1712123456271,-904.55,0.00043831,2]
[321395374,1712123456282,-150.91,0.00043836,2]
[321395375,1712123456291,-251.26,0.00043836,2]
[321395376,1712123456301,-12625.0,0.00044,2]
[321395377,1712123456311,-16002.88317071,0.00044,2]
[321395378,1712123456320,-60000.0,0.00044,4]
[321395379,1712123456330,-400.0,0.00044,30]
[321395380,1712123456340,-203.55541,0.00044,14]
[321395381,1712123456349,-203.55541,0.00044,14]
[321395382,1712123456359,-151.0,0.00044188,2]
[321395383,1712123456368,-678.72,0.00044232,2]
[321395384,1712123456378,-870.32,0.000444,7]
[321395385,1712123456388,-364.57,0.000444,7]
[321395386,1712123456397,-1000.0,0.000444,7]
[321395387,1712123456406,-152.0,0.00044738,6]
[321395388,1712123456415,-151.63,0.0004479,2]
[321395389,1712123456425,-157.06,0.0004479,2]
[321395390,1712123456434,-239.45,0.0004479,2]
[321395391,1712123456443,-348.46,0.0004479,2]
[321395392,1712123456453,-155.63,0.0004479,2]
[321395393,1712123456463,-152.29,0.0004479,2]
[321395394,1712123456472,-300.0,0.0004479,2]
[321395395,1712123456482,-161.57,0.0004479,2]
[321395396,1712123456492,-375.87,0.0004479,2]
[321395397,1712123456502,-344.62,0.0004479,2]
[321395398,1712123456511,-296.56,0.0004479,2]
[321395399,1712123456522,-150.0,0.0004479,2]
[321395400,1712123456530,-519.19,0.0004479,2]
[321395401,1712123456539,-150.0,0.0004479,2]
[321395402,1712123456549,-348.46,0.0004479,2]
[321395403,1712123456559,-416.91,0.0004479,2]
[321395404,1712123456568,-150.0,0.0004479,2]
[321395405,1712123456577,-161.88,0.0004479,2]
[321395406,1712123456587,-150.0,0.0004479,2]
[321395407,1712123456596,-442.05,0.0004479,2]
[321395408,1712123456606,-150.0,0.0004479,2]
[321395409,1712123456615,-519.19,0.0004479,2]
[321395410,1712123456625,-150.0,0.0004479,2]
[321395411,1712123456635,-416.91,0.0004479,2]
[321395412,1712123456644,-150.0,0.0004479,2]
[321395413,1712123456656,-150.0,0.0004479,2]
[321395414,1712123456665,-161.88,0.0004479,2]
[321395415,1712123456678,-150.0,0.0004479,2]
[321395416,1712123456687,-150.0,0.0004479,2]
[321395417,1712123456696,-348.46,0.0004479,2]
[321395418,1712123456705,-150.0,0.0004479,2]
[321395419,1712123456714,-150.0,0.0004479,2]
[321395420,1712123456723,-348.46,0.0004479,2]
[321395421,1712123456733,-150.0,0.0004479,2]
[321395422,1712123456742,-150.0,0.0004479,2]
[321395423,1712123456751,-416.91,0.0004479,2]
[321395424,1712123456760,-150.0,0.0004479,2]
[321395425,1712123456771,-150.0,0.0004479,2]
[321395426,1712123456780,-161.88,0.0004479,2]
[321395427,1712123456789,-150.0,0.0004479,2]
[321395428,1712123456798,-519.19,0.0004479,2]
[321395429,1712123456807,-150.0,0.0004479,2]
[321395430,1712123456816,-519.19,0.0004479,2]
[321395431,1712123456825,-416.91,0.0004479,2]
[321395432,1712123456834,-150.0,0.0004479,2]
[321395433,1712123456843,-150.0,0.0004479,2]
[321395434,1712123456852,-348.46,0.0004479,2]
[321395435,1712123456861,-150.0,0.0004479,2]
[321395436,1712123456870,-161.88,0.0004479,2]
[321395437,1712123456879,-519.19,0.0004479,2]
[321395438,1712123456889,-416.91,0.0004479,2]
[321395439,1712123456899,-150.0,0.0004479,2]
[321395440,1712123456908,-348.46,0.0004479,2]
[321395441,1712123456918,-150.0,0.0004479,2]
[321395442,1712123456927,-150.0,0.0004479,2]
[321395443,1712123456937,-161.88,0.0004479,2]
[321395444,1712123456947,-416.91,0.0004479,2]
[321395445,1712123456956,-150.0,0.0004479,2]
[321395446,1712123456966,-161.88,0.0004479,2]
[321395447,1712123456975,-300.0,0.0004479,2]
[321395448,1712123456985,-519.19,0.0004479,2]
[321395449,1712123456994,-348.46,0.0004479,2]
[321395450,1712123457004,-348.46,0.0004479,2]
[321395451,1712123457013,-416.91,0.0004479,2]
[321395452,1712123457023,-519.19,0.0004479,2]
[321395453,1712123457032,-150.0,0.0004479,2]
[321395454,1712123457041,-161.88,0.0004479,2]
[321395455,1712123457051,-519.19,0.0004479,2]
[321395456,1712123457060,-416.91,0.0004479,2]
[321395457,1712123457069,-150.0,0.0004479,2]
[321395458,1712123457079,-348.46,0.0004479,2]
[321395459,1712123457089,-416.91,0.0004479,2]
[321395460,1712123457098,-150.0,0.0004479,2]
[321395461,1712123457108,-348.46,0.0004479,2]
[321395462,1712123457118,-416.91,0.0004479,2]
[321395463,1712123457128,-378.63,0.0004479,2]
[321395464,1712123457138,-833.82,0.0004479,2]
[321395465,1712123457147,-993.46903431,0.0004489,10]
[321395466,1712123457156,-150.91,0.00044932,2]
[321395467,1712123457166,-5169.63145729,0.0004498,2]
[321395468,1712123457176,-328.38424403,0.00045,4]
[321395469,1712123457185,-10415.06202819,0.00045,5]
[321395470,1712123457195,-70858.73424473,0.00045,2]
[321395471,1712123457205,-18637.57288454,0.00045,5]
[321395472,1712123457214,-156.37173326,0.00045,14]
[321395473,1712123457224,-704.46813212,0.00045,30]
[321395474,1712123457234,-130693.08527069,0.00045,2]
[321395475,1712123457243,-170.22577968,0.00045,7]
[321395476,1712123457253,-262.52416993,0.00045,7]
[321395477,1712123457263,-538.75646989,0.00045,3]
[321395478,1712123457274,-6290.07012167,0.00045,4]
[321395479,1712123457285,-500.0,0.00045,2]
[321395480,1712123457295,-1050.0,0.00045,3]
[321395481,1712123457305,-354.75917,0.00045,2]
[321395482,1712123457314,-112087.73611906,0.0004509,2]
[321395483,1712123457324,-150.97,0.00045205,2]
[321395484,1712123457334,-212.61072703,0.00045264,20]
[321395485,1712123457344,-154.95,0.00045437,2]
[321395486,1712123457354,-150.0,0.00045618,120]
[321395487,1712123457364,-152.0,0.00045666,7]
[321395488,1712123457374,-1583.48,0.000457,7]
[321395489,1712123457383,-1300.27766301,0.000457,17]
[321395490,1712123457394,-1000.0,0.000457,7]
[321395491,1712123457403,-5575.76396523,0.000459,2]
[321395492,1712123457413,-579.07994398,0.000459,2]
[321395493,1712123457423,-3248.72636107,0.00046,90]
[321395494,1712123457432,-3200.0,0.00046,4]
[321395495,1712123457442,-500.0,0.00046,2]
[321395496,1712123457452,-364.57,0.00046,7]
[321395497,1712123457462,-261.62135738,0.00046,2]
[321395498,1712123457472,-150.91,0.00046027,2]
[321395499,1712123457482,-486.37,0.00046059,120]
[321395500,1712123457492,-150.0,0.00046129,120]
[321395501,1712123457501,-800.95,0.00046247,15]
[321395502,1712123457511,-678.72,0.00046496,2]
[321395503,1712123457523,-964.0,0.00046592,2]
[321395504,1712123457532,-459.0,0.00046592,2]
[321395505,1712123457542,-733.904,0.00046592,2]
[321395506,1712123457551,-262.619,0.00046592,2]
[321395507,1712123457560,-279.0,0.00046592,2]
[321395508,1712123457570,-606.0,0.00046592,2]
[321395509,1712123457579,-1270.0,0.00046592,2]
[321395510,1712123457589,-434.0,0.00046592,2]
[321395511,1712123457599,-804.0,0.00046592,2]
[321395512,1712123457608,-150.0,0.00046592,2]
[321395513,1712123457618,-150.0,0.00046592,2]
[321395514,1712123457627,-843.066,0.00046592,2]
[321395515,1712123457637,-397.0,0.00046592,2]
[321395516,1712123457647,-1466.0,0.00046592,2]
[321395517,1712123457658,-2989.0,0.00046592,2]
[321395518,1712123457668,-150.0,0.00046592,2]
[321395519,1712123457679,-1631.0,0.00046592,2]
[321395520,1712123457688,-2430.0,0.00046592,2]
[321395521,1712123457698,-214.0,0.00046592,2]
[321395522,1712123457708,-206.0,0.00046592,2]
[321395523,1712123457718,-150.0,0.00046592,2]
[321395524,1712123457727,-1196.0,0.00046592,2]
[321395525,1712123457737,-43082.0,0.00046592,2]
[321395526,1712123457748,-2166.712,0.00046592,2]
[321395527,1712123457758,-5696.0,0.00046592,2]
[321395528,1712123457769,-2456.0,0.00046592,2]
[321395529,1712123457778,-152.0,0.00046594,8]
[321395530,1712123457788,-3000.0,0.000466,2]
[321395531,1712123457798,-302.65,0.00046708,2]
[321395532,1712123457808,-150.0,0.00046708,2]
[321395533,1712123457818,-150.0,0.00046708,2]
[321395534,1712123457827,-150.0,0.00046708,2]
[321395535,1712123457837,-870.32,0.000468,7]
[321395536,1712123457847,-1100.0,0.00047,3]
[321395537,1712123457857,-1000.0,0.00047,7]
[321395538,1712123457866,-150.91,0.00047123,2]
[321395539,1712123457876,-595.21644997,0.00047308,30]
[321395540,1712123457886,-1292.89,0.00047453,120]
[321395541,1712123457896,-5000.0,0.00047463,7]
[321395542,1712123457905,-152.0,0.00047522,9]
[321395543,1712123457914,-1583.48,0.000476,7]
[321395544,1712123457924,-939.56,0.0004764,2]
[321395545,1712123457934,-212.61072703,0.00047809,23]
[321395546,1712123457943,-251.26,0.00047945,2]
[321395547,1712123457953,-578.0,0.00048,10]
[321395548,1712123457963,-500.0,0.00048,2]
[321395549,1712123457972,-151.0,0.00048,120]
[321395550,1712123457982,-155.61,0.00048,120]
[321395551,1712123457992,-155.61,0.00048,120]
[321395552,1712123458002,-155.61,0.00048,120]
[321395553,1712123458012,-416.91,0.00048051,2]
[321395554,1712123458025,-150.0,0.00048051,2]
[321395555,1712123458036,-4073.5165555,0.00048116,2]
[321395556,1712123458046,-93042.8732329,0.00048119,7]
[321395557,1712123458055,-161.92114145,0.00048119,2]
[321395558,1712123458065,-150.91,0.00048219,2]
[321395559,1712123458074,-1000.0,0.000483,7]
[321395560,1712123458084,-3373.03554017,0.000484,2]
[321395561,1712123458094,-152.0,0.0004845,10]
[321395562,1712123458103,-1300.27766301,0.00048671,20]
[321395563,1712123458113,-16768.09825731,0.000487,2]
[321395564,1712123458123,-1091.0,0.000487,117]
[321395565,1712123458132,-678.72,0.0004876,2]
[321395566,1712123458141,-171.40348198,0.00048797,13]
[321395567,1712123458151,-761.4843387,0.00048864,2]
[321395568,1712123458160,-3531.1225198,0.00048864,2]
[321395569,1712123458169,-13070.9195089,0.00048864,2]
[321395570,1712123458178,-79213.0797742,0.00048864,2]
[321395571,1712123458188,-24441.099333,0.00048894,2]
[321395572,1712123458198,-2968936.8419674,0.00048897,2]
[321395573,1712123458208,-151.0,0.00048897,14]
[321395574,1712123458218,-203.55541,0.00048897,14]
[321395575,1712123458227,-203.55541,0.00048897,14]
[321395576,1712123458238,-425215.34947177,0.000489,2]
[321395577,1712123458248,-2098.01094403,0.000489,2]
[321395578,1712123458258,-5575.76396523,0.000489,2]
[321395579,1712123458270,-579.07994398,0.000489,2]
[321395580,1712123458280,-800.95,0.00048986,15]
[321395581,1712123458290,-1211.0,0.00049,4]
[321395582,1712123458299,-1395.58834203,0.00049,30]
[321395583,1712123458309,-1029.4124782,0.00049,2]
[321395584,1712123458319,-870.32,0.00049,7]
[321395585,1712123458329,-2000.0,0.00049,120]
[321395586,1712123458338,-500.0,0.00049,2]
[321395587,1712123458348,-1150.0,0.00049,3]
[321395588,1712123458357,-151.0,0.00049014,120]
[321395589,1712123458366,-151.0,0.00049097,2]
[321395590,1712123458376,-250.49088,0.00049097,2]
[321395591,1712123458386,-1715.77806229,0.000491,14]
[321395592,1712123458396,-1910.0,0.000493,2]
[321395593,1712123458405,-1543.066644,0.000493,69]
[321395594,1712123458415,-1000.0,0.00049315,60]
[321395595,1712123458425,-151.0,0.00049315,120]
[321395596,1712123458435,-156.176286,0.00049315,120]
[321395597,1712123458445,-153.572282,0.00049315,120]
[321395598,1712123458455,-151.0,0.00049315,7]
[321395599,1712123458464,-151.0,0.00049315,7]
[321395600,1712123458475,-151.0,0.00049315,7]
[321395601,1712123458485,-151.0,0.00049315,7]
[321395602,1712123458495,-151.0,0.00049315,7]
[321395603,1712123458505,-151.0,0.00049315,7]
[321395604,1712123458514,-257.684151,0.00049315,7]
[321395605,1712123458527,-151.0,0.00049315,7]
[321395606,1712123458537,-151.0,0.00049315,120]
[321395607,1712123458546,-151.0,0.00049315,120]
[321395608,1712123458556,-152.791728,0.00049315,120]
[321395609,1712123458566,-168.633093,0.00049315,7]
[321395610,1712123458575,-168.633093,0.00049315,7]
[321395611,1712123458585,-168.633093,0.00049315,7]
[321395612,1712123458595,-168.633093,0.00049315,7]
[321395613,1712123458605,-168.633093,0.00049315,7]
[321395614,1712123458615,-168.633093,0.00049315,7]
[321395615,1712123458625,-168.633093,0.00049315,7]
[321395616,1712123458634,-168.633093,0.00049315,7]
[321395617,1712123458644,-168.633093,0.00049315,7]
[321395618,1712123458655,-168.633093,0.00049315,7]
[321395619,1712123458665,-150.91,0.00049315,2]
[321395620,1712123458676,-640.291783,0.00049315,120]
[321395621,1712123458685,-640.291783,0.00049315,120]
[321395622,1712123458695,-640.291783,0.00049315,120]
[321395623,1712123458704,-640.291783,0.00049315,120]
[321395624,1712123458714,-640.291783,0.00049315,120]
[321395625,1712123458724,-640.291783,0.00049315,120]
[321395626,1712123458733,-640.291783,0.00049315,120]
[321395627,1712123458743,-640.291783,0.00049315,120]
[321395628,1712123458754,-640.291783,0.00049315,120]
[321395629,1712123458764,-640.291783,0.00049315,120]
[321395630,1712123458780,-244.876661,0.00049315,120]
[321395631,1712123458789,-689.909164,0.00049315,120]
[321395632,1712123458800,-689.909164,0.00049315,120]
[321395633,1712123458810,-689.909164,0.00049315,120]
[321395634,1712123458820,-689.909164,0.00049315,120]
[321395635,1712123458830,-689.909164,0.00049315,120]
[321395636,1712123458839,-689.909164,0.00049315,120]
[321395637,1712123458849,-689.909164,0.00049315,120]
[321395638,1712123458859,-689.909164,0.00049315,120]
[321395639,1712123458868,-689.909164,0.00049315,120]
[321395640,1712123458878,-689.909164,0.00049315,120]
[321395641,1712123458888,-151.0,0.00049315,14]
[321395642,1712123458898,-151.0,0.00049315,14]
[321395643,1712123458907,-235.304148,0.00049315,14]
[321395644,1712123458917,-151.0,0.00049315,7]
[321395645,1712123458926,-151.0,0.00049315,7]
[321395646,1712123458935,-151.0,0.00049315,7]
[321395647,1712123458945,-151.0,0.00049315,7]
[321395648,1712123458956,-151.0,0.00049315,7]
[321395649,1712123458966,-151.0,0.00049315,7]
[321395650,1712123458975,-161.329498,0.00049315,120]
[321395651,1712123458985,-162.668745,0.00049315,120]
[321395652,1712123458995,-151.0,0.00049315,120]
[321395653,1712123459004,-161.89799,0.00049315,120]
[321395654,1712123459014,-152.0,0.00049378,11]
[321395655,1712123459027,-5099.22892132,0.0004942,31]
[321395656,1712123459037,-51573.69363264,0.0004948,120]
[321395657,1712123459239,-78656.10212082,0.00049498,2]
[321395658,1712123459249,-173.040315,0.00049498,110]
[321395659,1712123459259,-598.44737964,0.00049507,120]
[321395660,1712123459272,-171.952,0.00049592,2]
[321395661,1712123459282,-442.633,0.00049592,2]
[321395662,1712123459292,-315.204,0.00049592,2]
[321395663,1712123459301,-434.0,0.00049592,2]
[321395664,1712123459311,-804.0,0.00049592,2]
[321395665,1712123459321,-150.0,0.00049592,2]
[321395666,1712123459330,-2230.987,0.00049592,2]
[321395667,1712123459340,-560.424,0.00049592,2]
[321395668,1712123459350,-1248.331,0.00049592,2]
[321395669,1712123459359,-214.0,0.00049592,2]
[321395670,1712123459369,-206.0,0.00049592,2]
[321395671,1712123459378,-150.0,0.00049592,2]
[321395672,1712123459388,-1196.0,0.00049592,2]
[321395673,1712123459399,-43082.0,0.00049592,2]
[321395674,1712123459409,-3484.983,0.00049592,2]
[321395675,1712123459419,-2456.0,0.00049592,2]
[321395676,1712123459430,-1583.48,0.000496,7]
[321395677,1712123459452,-1000.0,0.000496,7]
[321395678,1712123459463,-2161.15259342,0.0004968,120]
[321395679,1712123459474,-598.44737964,0.00049699,120]
[321395680,1712123459485,-12287.68134233,0.000497,10]
[321395681,1712123459496,-160.54,0.00049721,30]
[321395682,1712123459506,-150.0,0.00049721,30]
[321395683,1712123459515,-150.0,0.00049721,30]
[321395684,1712123459531,-150.0,0.00049721,30]
[321395685,1712123459541,-1029.0,0.00049798,30]
[321395686,1712123459551,-6377.36147192,0.000498,60]
[321395687,1712123459560,-2929.285009,0.000498,72]
[321395688,1712123459570,-1006.32,0.000498,2]
[321395689,1712123459580,-319.94,0.000498,2]
[321395690,1712123459590,-2900.0,0.00049862,90]
[321395691,1712123459600,-1300.0,0.00049862,90]
[321395692,1712123459610,-940.32,0.00049863,120]
[321395693,1712123459619,-598.44737964,0.00049918,120]
[321395694,1712123459630,-302.0,0.00049923,4]
[321395695,1712123459639,-549.53878118,0.00049998,120]
[321395696,1712123459649,-839.03450068,0.0005,2]
[321395697,1712123459664,-999.999999,0.0005,2]
[321395698,1712123459673,-27093.29378832,0.0005,4]
[321395699,1712123459683,-511.7250841,0.0005,90]
[321395700,1712123459692,-182.86803483,0.0005,120]
[321395701,1712123459703,-5000.0,0.0005,30]
[321395702,1712123459713,-155.0,0.0005,2]
[321395703,1712123459722,-2000.0,0.0005,120]
[321395704,1712123459732,-116826.14061208,0.0005,120]
[321395705,1712123459741,-1120.95388549,0.0005,2]
[321395706,1712123459751,-817.20876623,0.0005,2]
[321395707,1712123459761,-3885.94492622,0.0005,2]
[321395708,1712123459773,-200.0,0.0005,2]
[321395709,1712123459782,-10145.60803331,0.0005,120]
[321395710,1712123459792,-2687.98,0.0005,30]
[321395711,1712123459801,-2688.0,0.0005,30]
[321395712,1712123459811,-2701.02,0.0005,30]
[321395713,1712123459820,-150.0,0.0005,30]
[321395714,1712123459829,-53835.96797473,0.0005,20]
[321395715,1712123459838,-651.48,0.0005,120]
[321395716,1712123459848,-500.0,0.0005,120]
[321395717,1712123459857,-500.0,0.0005,120]
[321395718,1712123459866,-500.0,0.0005,120]
[321395719,1712123459876,-500.0,0.0005,120]
[321395720,1712123459885,-153.31,0.0005,30]
[321395721,1712123459894,-500.0,0.0005,120]
[321395722,1712123459904,-500.0,0.0005,120]
[321395723,1712123459913,-500.0,0.0005,120]
[321395724,1712123459922,-500.0,0.0005,120]
[321395725,1712123459932,-32826.43544435,0.0005,30]
[321395726,1712123459941,-8952.0,0.0005,9]
[321395727,1712123459951,-29395.96237858,0.0005,30]
[321395728,1712123459959,-156.10785485,0.0005,120]
[321395729,1712123459969,-539.64830422,0.0005,28]
[321395730,1712123459978,-151.0,0.0005,120]
[321395731,1712123459987,-8978.32367948,0.0005,2]
[321395732,1712123459996,-151.0,0.0005,7]
[321395733,1712123460006,-168.633093,0.0005,7]
[321395734,1712123460021,-168.633093,0.0005,7]
[321395735,1712123460031,-640.291783,0.0005,120]
[321395736,1712123460041,-640.291783,0.0005,120]
[321395737,1712123460052,-354.75917,0.0005,2]
[321395738,1712123460062,-231.873222,0.0005,120]
[321395739,1712123460071,-689.909164,0.0005,120]
[321395740,1712123460082,-689.909164,0.0005,120]
[321395741,1712123460092,-151.0,0.0005,7]
[321395742,1712123460101,-203.55541,0.0005,120]
[321395743,1712123460111,-203.55541,0.0005,120]
[321395744,1712123460120,-151.0,0.00050027,120]